fUSD/lending_fUSD_20240521
["ID","MTS","AMOUNT","RATE_DAILY","PERIOD"]
[327660959,1716289842798,-500.0,0.00032984,6]
[327660960,1716289842808,-647.52,0.00032984,6]
[327660961,1716289842818,-248.10736097,0.00032984,6]
[327660962,1716289842828,-604.99526723,0.00032984,6]
[327660963,1716289842837,-545.43,0.00032984,6]
[327660964,1716289842846,-443.96280405,0.00032984,6]
[327660965,1716289842855,-500.0,0.00032984,6]
[327660966,1716289842864,-551.28,0.00032984,6]
[327660967,1716289842874,-500.0,0.00032984,6]
[327660968,1716289842884,-231.95,0.00032984,6]
[327660969,1716289842893,-500.0,0.00032984,6]
[327660970,1716289842902,-500.0,0.00032984,6]
[327660971,1716289842913,-500.0,0.00032984,6]
[327660972,1716289842922,-500.0,0.00032984,6]
[327660973,1716289842933,-500.0,0.00032984,6]
[327660974,1716289842943,-500.0,0.00032984,6]
[327660975,1716289842954,-522.34014246,0.00032984,6]
[327660976,1716289842963,-705.79,0.00032984,6]
[327660981,1716289842973,-500.0,0.00032984,6]
[327660984,1716289842982,-500.0,0.00032984,6]
[327660986,1716289842991,-702.31,0.00032984,6]
[327660987,1716289843000,-500.0,0.00032984,6]
[327660990,1716289843010,-500.0,0.00032984,6]
[327660992,1716289843019,-500.0,0.00032984,6]
[327660993,1716289843029,-500.0,0.00032984,6]
[327660994,1716289843041,-500.0,0.00032984,6]
[327660995,1716289843050,-541.85,0.00032984,6]
[327660996,1716289843059,-546.08174392,0.00032984,6]
[327660997,1716289843067,-500.0,0.00032984,6]
[327660998,1716289843076,-500.0,0.00032984,6]
[327660999,1716289843085,-500.0,0.00032984,6]
[327661000,1716289843095,-834.3,0.00032984,6]
[327661001,1716289843104,-500.0,0.00032984,6]
[327661002,1716289843113,-756.94,0.00032984,6]
[327661003,1716289843123,-552.05,0.00032984,6]
[327661004,1716289843132,-500.0,0.00032984,6]
[327661005,1716289843142,-500.0,0.00032984,6]
[327661006,1716289843151,-967.49,0.00032984,6]
[327661007,1716289843160,-500.0,0.00032984,6]
[327661008,1716289843169,-945.95,0.00032984,6]
[327661009,1716289843180,-919.43,0.00032984,6]
[327661010,1716289843189,-500.0,0.00032984,6]
[327661011,1716289843199,-500.0,0.00032984,6]
[327661012,1716289843209,-500.0,0.00032984,6]
[327661013,1716289843219,-2149.82,0.00032984,6]
[327661014,1716289843233,-814.93,0.00032984,6]
[327661015,1716289843243,-1100.82,0.00032984,6]
[327661016,1716289843256,-500.0,0.00032984,6]
[327661017,1716289843388,-507.08199729,0.00032984,6]
[327661018,1716289843401,-500.0,0.00032984,6]
[327661019,1716289843410,-500.0,0.00032984,6]
[327661020,1716289843422,-500.0,0.00032984,6]
[327661021,1716289843432,-662.16,0.00032984,6]
[327661022,1716289843442,-1799.93,0.00032984,6]
[327661023,1716289843451,-500.0,0.00032984,6]
[327661024,1716289843461,-500.0,0.00032984,6]
[327661025,1716289843470,-500.0,0.00032984,6]
[327661026,1716289843480,-279.42086084,0.00032984,6]
[327661027,1716289843491,-530.00835387,0.00032984,6]
[327661028,1716289843500,-509.29955199,0.00032984,6]
[327661029,1716289843509,-221.35,0.00032984,6]
[327661030,1716289843519,-505.63797883,0.00032984,6]
[327661031,1716289843528,-500.0,0.00032984,6]
[327661032,1716289843537,-511.21089844,0.00032984,6]
[327661033,1716289843546,-1405.06,0.00032984,6]
[327661034,1716289843557,-521.17465324,0.00032984,6]
[327661035,1716289843566,-799.85,0.00032984,6]
[327661036,1716289843575,-500.0,0.00032984,6]
[327661037,1716289843585,-500.0,0.00032984,6]
[327661038,1716289843595,-500.0,0.00032984,6]
[327661039,1716289843604,-299.64301023,0.00032984,6]
[327661040,1716289843614,-500.0,0.00032984,6]
[327661041,1716289843624,-745.28,0.00032984,6]
[327661042,1716289843636,-508.30436457,0.00032984,6]
[327661043,1716289843645,-841.83,0.00032984,6]
[327661044,1716289843655,-500.0,0.00032984,6]
[327661045,1716289843666,-1171.85,0.00032984,6]
[327661046,1716289843675,-500.0,0.00032984,6]
[327661047,1716289843685,-1300.36,0.00032984,6]
[327661048,1716289843694,-500.0,0.00032984,6]
[327661049,1716289843704,-749.7,0.00032984,6]
[327661050,1716289843713,-500.0,0.00032984,6]
[327661051,1716289843722,-500.0,0.00032984,6]
[327661052,1716289843731,-203.75,0.00032984,6]
[327661053,1716289843740,-868.84,0.00032984,6]
[327661054,1716289843750,-950.55,0.00032984,6]
[327661055,1716289843759,-1154.49,0.00032984,6]
[327661056,1716289843769,-608.39,0.00032984,6]
[327661057,1716289843778,-500.0,0.00032984,6]
[327661058,1716289843788,-551.53,0.00032984,6]
[327661059,1716289843798,-560.82,0.00032984,6]
[327661060,1716289843807,-500.0,0.00032984,6]
[327661061,1716289843816,-1111.14,0.00032984,6]
[327661062,1716289843826,-500.0,0.00032984,6]
[327661063,1716289843835,-717.37,0.00032984,6]
[327661064,1716289843846,-500.0,0.00032984,6]
[327661065,1716289843855,-500.0,0.00032984,6]
[327661066,1716289843865,-549.44,0.00032984,6]
[327661067,1716289843874,-500.0,0.00032984,6]
[327661068,1716289843884,-767.4,0.00032984,6]
[327661069,1716289843893,-500.0,0.00032984,6]
[327661070,1716289843903,-500.0,0.00032984,6]
[327661071,1716289843912,-500.0,0.00032984,6]
[327661072,1716289843922,-705.12,0.00032984,6]
[327661073,1716289843933,-623.1,0.00032984,6]
[327661074,1716289843946,-500.0,0.00032984,6]
[327661075,1716289843956,-500.0,0.00032984,6]
[327661076,1716289843966,-502.35163092,0.00032984,6]
[327661077,1716289843975,-500.0,0.00032984,6]
[327661078,1716289843985,-500.0,0.00032984,6]
[327661079,1716289843994,-555.13,0.00032984,6]
[327661080,1716289844003,-500.0,0.00032984,6]
[327661082,1716289844012,-500.0,0.00032984,6]
[327661084,1716289844021,-307.49,0.00032984,6]
[327661086,1716289844031,-500.0,0.00032984,6]
[327661087,1716289844040,-277.65,0.00032984,6]
[327661088,1716289844050,-500.0,0.00032984,6]
[327661089,1716289844060,-500.0,0.00032984,6]
[327661090,1716289844069,-500.0,0.00032984,6]
[327661091,1716289844080,-500.0,0.00032984,6]
[327661092,1716289844091,-500.0,0.00032984,6]
[327661093,1716289844101,-500.0,0.00032984,6]
[327661094,1716289844111,-500.0,0.00032984,6]
[327661095,1716289844120,-545.62,0.00032984,6]
[327661096,1716289844131,-500.0,0.00032984,6]
[327661097,1716289844143,-500.0,0.00032984,6]
[327661098,1716289844153,-506.85487787,0.00032984,6]
[327661099,1716289844163,-192.52660413,0.00032984,6]
[327661100,1716289844172,-500.0,0.00032984,6]
[327661101,1716289844181,-500.0,0.00032984,6]
[327661102,1716289844190,-500.0,0.00032984,6]
[327661103,1716289844199,-1704.17,0.00032984,6]
[327661104,1716289844208,-500.0,0.00032984,6]
[327661105,1716289844220,-500.0,0.00032984,6]
[327661106,1716289844230,-507.6155758,0.00032984,6]
[327661107,1716289844240,-3336.61,0.00032985,6]
[327661108,1716289844251,-2427.75,0.00032985,6]
[327661109,1716289844262,-500.0,0.00032985,6]
[327661110,1716289844271,-11902.44,0.00032985,6]
[327661111,1716289844281,-1646.27,0.00032985,6]
[327661112,1716289844290,-3458.07,0.00032985,6]
[327661113,1716289844302,-500.0,0.00032985,6]
[327661114,1716289844312,-3233.79,0.00032985,6]
[327661115,1716289844321,-2303.27,0.00032985,6]
[327661116,1716289844331,-2583.22,0.00032985,6]
[327661117,1716289844340,-495.58,0.00032985,6]
[327661118,1716289844350,-6138.86,0.00032985,6]
[327661119,1716289844359,-4278.7,0.00032985,6]
[327661120,1716289844368,-5343.54,0.00032985,6]
[327661121,1716289844377,-500.0,0.00032985,6]
[327661122,1716289844387,-1029.12,0.00032985,6]
[327661123,1716289844397,-500.0,0.00032986,6]
[327661124,1716289844406,-500.0,0.00032986,6]
[327661125,1716289844416,-354.34886395,0.00032986,6]
[327661126,1716289844426,-528.81,0.00032986,6]
[327661127,1716289844435,-500.0,0.00032986,6]
[327661128,1716289844444,-663.21,0.00032986,6]
[327661129,1716289844453,-972.54,0.00032986,6]
[327661130,1716289844462,-500.0,0.00032986,6]
[327661131,1716289844471,-500.0,0.00032986,6]
[327661132,1716289844480,-967.88,0.00032986,6]
[327661133,1716289844490,-903.07,0.00032986,6]
[327661134,1716289844499,-500.0,0.00032986,6]
[327661135,1716289844509,-1383.08,0.00032986,6]
[327661136,1716289844519,-545.05,0.00032986,6]
[327661137,1716289844530,-696.29,0.00032986,6]
[327661138,1716289844540,-500.0,0.00032986,6]
[327661139,1716289844549,-360.42,0.00032986,6]
[327661140,1716289844558,-613.99,0.00032986,6]
[327661141,1716289844569,-500.0,0.00032986,6]
[327661142,1716289844579,-500.0,0.00032986,6]
[327661143,1716289844589,-812.36,0.00032986,6]
[327661144,1716289844598,-500.0,0.00032986,6]
[327661145,1716289844607,-753.59,0.00032986,6]
[327661146,1716289844617,-571.3,0.00032986,6]
[327661147,1716289844626,-502.16,0.00032986,6]
[327661148,1716289844636,-894.83,0.00032986,6]
[327661149,1716289844645,-517.54,0.00032986,6]
[327661150,1716289844656,-530.75,0.00032986,6]
[327661151,1716289844665,-500.0,0.00032986,6]
[327661152,1716289844675,-500.0,0.00032986,6]
[327661153,1716289844684,-1389.48,0.00032986,6]
[327661154,1716289844693,-500.0,0.00032986,6]
[327661155,1716289844703,-813.39,0.00032986,6]
[327661156,1716289844712,-500.0,0.00032986,6]
[327661157,1716289844721,-784.97,0.00032986,6]
[327661158,1716289844731,-1280.36,0.00032986,6]
[327661159,1716289844739,-507.36,0.00032986,6]
[327661160,1716289844748,-1205.59,0.00032986,6]
[327661161,1716289844757,-274.46,0.00032986,6]
[327661162,1716289844767,-500.0,0.00032986,6]
[327661163,1716289844776,-877.95,0.00032986,6]
[327661164,1716289844786,-500.0,0.00032986,6]
[327661165,1716289844795,-949.04,0.00032986,6]
[327661166,1716289844804,-500.0,0.00032986,6]
[327661167,1716289844813,-500.0,0.00032986,6]
[327661168,1716289844822,-936.11,0.00032986,6]
[327661169,1716289844831,-752.84,0.00032986,6]
[327661170,1716289844841,-520.67553247,0.00032986,6]
[327661171,1716289844851,-960.8,0.00032986,6]
[327661172,1716289844860,-634.97671108,0.00032986,6]
[327661173,1716289844869,-500.0,0.00032986,6]
[327661174,1716289844879,-1040.62,0.00032986,6]
[327661175,1716289844890,-500.0,0.00032986,6]
[327661176,1716289844899,-892.76,0.00032986,6]
[327661177,1716289844909,-500.0,0.00032986,6]
[327661178,1716289844919,-832.7,0.00032986,6]
[327661179,1716289844928,-1407.11,0.00032986,6]
[327661180,1716289844948,-872.03,0.00032986,6]
[327661181,1716289844960,-1000.97,0.00032986,6]
[327661182,1716289844971,-500.0,0.00032986,6]
[327661183,1716289844981,-500.0,0.00032986,6]
[327661184,1716289844993,-951.8,0.00032986,6]
[327661185,1716289845003,-500.0,0.00032986,6]
[327661186,1716289845013,-1511.43,0.00032986,6]
[327661187,1716289845024,-500.0,0.00032986,6]
[327661188,1716289845034,-616.33,0.00032986,6]
[327661189,1716289845044,-1039.74,0.00032986,6]
[327661190,1716289845054,-770.72,0.00032986,6]
[327661191,1716289845065,-864.44,0.00032986,6]
[327661192,1716289845075,-500.0,0.00032986,6]
[327661193,1716289845085,-992.16,0.00032986,6]
[327661194,1716289845096,-653.87,0.00032986,6]
[327661195,1716289845105,-500.0,0.00032986,6]
[327661196,1716289845115,-500.0,0.00032986,6]
[327661197,1716289845124,-925.7,0.00032986,6]
[327661198,1716289845136,-500.0,0.00032986,6]
[327661199,1716289845146,-500.0,0.00032986,6]
[327661200,1716289845156,-1958.77,0.00032986,6]
[327661201,1716289845166,-500.0,0.00032986,6]
[327661202,1716289845176,-1401.13,0.00032986,6]
[327661203,1716289845187,-500.0,0.00032986,6]
[327661204,1716289845198,-1181.49,0.00032986,6]
[327661205,1716289845209,-2383.33,0.00032986,6]
[327661206,1716289845220,-500.0,0.00032986,6]
[327661207,1716289845236,-782.67,0.00032986,6]
[327661208,1716289845247,-1181.5,0.00032986,6]
[327661209,1716289845259,-912.52,0.00032986,6]
[327661210,1716289845272,-985.39,0.00032986,6]
[327661211,1716289845284,-1922.42,0.00032986,6]
[327661212,1716289845295,-1591.94,0.00032986,6]
[327661213,1716289845307,-500.0,0.00032986,6]
[327661214,1716289845320,-1316.31,0.00032986,6]
[327661215,1716289845330,-393.43741679,0.00032986,6]
[327661216,1716289845341,-1460.32,0.00032986,6]
[327661217,1716289845353,-500.0,0.00032986,6]
[327661218,1716289845364,-1478.87,0.00032986,6]
[327661219,1716289845377,-1704.84,0.00032986,6]
[327661220,1716289845387,-594.8,0.00032986,6]
[327661221,1716289845398,-554.86,0.00032986,6]
[327661222,1716289845407,-500.0,0.00032986,6]
[327661223,1716289845417,-500.0,0.00032986,6]
[327661224,1716289845427,-1209.04,0.00032986,6]
[327661225,1716289845436,-500.0,0.00032986,6]
[327661226,1716289845447,-565.32,0.00032986,6]
[327661227,1716289845458,-1188.87,0.00032986,6]
[327661228,1716289845470,-500.0,0.00032986,6]
[327661229,1716289845480,-2098.53,0.00032986,6]
[327661230,1716289845491,-5987.89,0.00032986,6]
[327661231,1716289845502,-1426.35,0.00032986,6]
[327661232,1716289845512,-500.0,0.00032986,6]
[327661233,1716289845521,-500.0,0.00032986,6]
[327661234,1716289845532,-909.1,0.00032986,6]
[327661235,1716289845541,-2119.96,0.00032986,6]
[327661236,1716289845551,-549.34,0.00032986,6]
[327661237,1716289845567,-500.0,0.00032986,6]
[327661238,1716289845578,-3928.51,0.00032986,6]
[327661239,1716289845907,-500.0,0.00032986,6]
[327661240,1716289845967,-500.0,0.00032986,6]
[327661241,1716289845979,-292.86,0.00032986,6]
[327661242,1716289845990,-1303.65,0.00032986,6]
[327661245,1716289846000,-752.01,0.00032986,6]
[327661246,1716289846009,-500.0,0.00032986,6]
[327661248,1716289846019,-500.0,0.00032986,6]
[327661249,1716289846030,-572.12,0.00032986,6]
[327661250,1716289846039,-1584.81,0.00032986,6]
[327661251,1716289846048,-1840.98,0.00032986,6]
[327661252,1716289846059,-500.0,0.00032986,6]
[327661253,1716289846068,-500.0,0.00032986,6]
[327661254,1716289846078,-1264.92,0.00032986,6]
[327661255,1716289846087,-1045.68,0.00032986,6]
[327661256,1716289846098,-644.74,0.00032986,6]
[327661257,1716289846109,-500.0,0.00032986,6]
[327661258,1716289846118,-1944.59,0.00032986,6]
[327661259,1716289846128,-500.0,0.00032986,6]
[327661260,1716289846139,-12996.96,0.00032986,6]
[327661261,1716289846148,-518.74,0.00032986,6]
[327661262,1716289846158,-500.0,0.00032986,6]
[327661263,1716289846169,-34458.31,0.00032986,6]
[327661264,1716289846180,-2715.62,0.00032986,6]
[327661265,1716289846190,-500.0,0.00032986,6]
[327661266,1716289846200,-500.0,0.00032986,6]
[327661267,1716289846210,-1458.25,0.00032986,6]
[327661268,1716289846220,-1759.69,0.00032986,6]
[327661269,1716289846234,-8935.11,0.00032986,6]
[327661270,1716289846244,-759.67,0.00032986,6]
[327661271,1716289846255,-568.74,0.00032986,6]
[327661272,1716289846266,-500.0,0.00032986,6]
[327661273,1716289846276,-2909.49,0.00032986,6]
[327661274,1716289846286,-500.0,0.00032986,6]
[327661275,1716289846295,-500.0,0.00032986,6]
[327661276,1716289846306,-1053.36,0.00032986,6]
[327661277,1716289846316,-500.0,0.00032986,6]
[327661279,1716289846326,-1469.45,0.00032986,6]
[327661280,1716289846338,-500.0,0.00032986,6]
[327661281,1716289846348,-523.61,0.00032986,6]
[327661282,1716289846360,-5236.06,0.00032986,6]
[327661283,1716289846371,-500.0,0.00032986,6]
[327661284,1716289846382,-500.0,0.00032986,6]
[327661285,1716289846393,-500.0,0.00032986,6]
[327661286,1716289846402,-500.0,0.00032986,6]
[327661287,1716289846411,-1682.51,0.00032986,6]
[327661288,1716289846422,-500.0,0.00032986,6]
[327661289,1716289846431,-1448.31,0.00032986,6]
[327661290,1716289846443,-500.0,0.00032986,6]
[327661291,1716289846453,-3733.56,0.00032986,6]
[327661292,1716289846464,-1889.33,0.00032986,6]
[327661293,1716289846474,-1773.66,0.00032986,6]
[327661294,1716289846484,-871.53,0.00032986,6]
[327661295,1716289846495,-1554.05,0.00032986,6]
[327661296,1716289846504,-2474.37,0.00032986,6]
[327661297,1716289846513,-500.0,0.00032986,6]
[327661298,1716289846522,-500.0,0.00032986,6]
[327661299,1716289846531,-3109.23,0.00032986,6]
[327661300,1716289846543,-500.0,0.00032986,6]
[327661301,1716289846553,-500.0,0.00032986,6]
[327661302,1716289846562,-500.0,0.00032986,6]
[327661303,1716289846572,-1792.27,0.00032986,6]
[327661304,1716289846583,-1168.19,0.00032986,6]
[327661305,1716289846594,-1947.66,0.00032986,6]
[327661306,1716289846604,-4182.64,0.00032986,6]
[327661307,1716289846614,-3915.85,0.00032986,6]
[327661308,1716289846624,-500.0,0.00032986,6]
[327661309,1716289846634,-827.2,0.00032986,6]
[327661310,1716289846644,-3737.13,0.00032986,6]
[327661311,1716289846654,-2723.66,0.00032986,6]
[327661312,1716289846663,-6711.27,0.00032986,6]
[327661313,1716289846674,-3735.37,0.00032986,6]
[327661314,1716289846683,-500.0,0.00032986,6]
[327661315,1716289846695,-500.0,0.00032986,6]
[327661316,1716289846705,-543.14,0.00032986,6]
[327661317,1716289846715,-500.0,0.00032986,6]
[327661318,1716289846725,-1165.62,0.00032986,6]
[327661319,1716289846734,-500.0,0.00032986,6]
[327661320,1716289846743,-500.0,0.00032986,6]
[327661321,1716289846752,-1174.0,0.00032986,6]
[327661322,1716289846762,-1390.83,0.00032986,6]
[327661323,1716289846772,-521.0,0.00032986,6]
[327661324,1716289846782,-3098.28,0.00032986,6]
[327661325,1716289846791,-1339.14,0.00032986,6]
[327661326,1716289846800,-684.1,0.00032986,6]
[327661327,1716289846810,-2708.47,0.00032986,6]
[327661328,1716289846819,-3233.25,0.00032986,6]
[327661329,1716289846828,-708.58,0.00032986,6]
[327661330,1716289846837,-913.19,0.00032986,6]
[327661331,1716289846848,-570.05,0.00032986,6]
[327661332,1716289846857,-2579.9,0.00032986,6]
[327661333,1716289846867,-500.0,0.00032986,6]
[327661334,1716289846877,-854.27,0.00032986,6]
[327661335,1716289846888,-336.9,0.00032986,6]
[327661336,1716289846897,-1423.94,0.00032986,6]
[327661337,1716289846906,-3728.95,0.00032986,6]
[327661338,1716289846915,-3353.27,0.00032986,6]
[327661339,1716289846925,-500.0,0.00032986,6]
[327661340,1716289846935,-500.0,0.00032986,6]
[327661341,1716289846944,-2867.3,0.00032986,6]
[327661342,1716289846956,-1534.21,0.00032986,6]
[327661343,1716289846966,-5742.01,0.00032986,6]
[327661344,1716289846976,-500.0,0.00032986,6]
[327661345,1716289846986,-4374.84,0.00032986,6]
[327661346,1716289846997,-500.0,0.00032986,6]
[327661347,1716289847006,-2490.56,0.00032986,6]
[327661348,1716289847016,-500.0,0.00032986,6]
[327661349,1716289847026,-908.16,0.00032986,6]
[327661350,1716289847035,-552.73,0.00032986,6]
[327661351,1716289847044,-6975.59,0.00032986,6]
[327661352,1716289847054,-500.0,0.00032986,6]
[327661353,1716289847064,-2999.45,0.00032986,6]
[327661354,1716289847073,-500.0,0.00032986,6]
[327661355,1716289847082,-1197.99,0.00032986,6]
[327661356,1716289847091,-746.39,0.00032986,6]
[327661357,1716289847101,-4000.0,0.00032986,6]
[327661358,1716289847110,-500.0,0.00032986,6]
[327661359,1716289847120,-12407.4,0.00032986,6]
[327661360,1716289847129,-500.0,0.00032986,6]
[327661361,1716289847139,-42829.36,0.00032986,6]
[327661362,1716289847148,-2550.48,0.00032986,6]
[327661363,1716289847159,-2269.27,0.00032986,6]
[327661364,1716289847168,-164.51586569,0.00032995,2]
[327661365,1716289847177,-891.95,0.00033037,2]
[327661366,1716289847186,-154.1024266,0.00033065,7]
[327661367,1716289847195,-133119.82608779,0.00033067,19]
[327661368,1716289847204,-6309.16412739,0.00033068,2]
[327661369,1716289847214,-500.0,0.00033094,6]
[327661370,1716289847227,-500.0,0.00033094,6]
[327661371,1716289847236,-500.0,0.00033094,6]
[327661372,1716289847246,-500.0,0.00033094,6]
[327661373,1716289847255,-750.84,0.00033094,6]
[327661374,1716289847266,-500.0,0.00033094,6]
[327661375,1716289847275,-500.0,0.00033094,6]
[327661376,1716289847284,-500.0,0.00033094,6]
[327661377,1716289847293,-540.25,0.00033094,6]
[327661378,1716289847304,-500.0,0.00033094,6]
[327661379,1716289847313,-500.0,0.00033094,6]
[327661380,1716289847322,-773.06,0.00033094,6]
[327661381,1716289847332,-500.0,0.00033094,6]
[327661382,1716289847341,-500.0,0.00033094,6]
[327661383,1716289847350,-647.52,0.00033094,6]
[327661384,1716289847359,-545.43,0.00033094,6]
[327661385,1716289847368,-500.0,0.00033094,6]
[327661386,1716289847378,-551.28,0.00033094,6]
[327661387,1716289847387,-500.0,0.00033094,6]
[327661388,1716289847396,-500.0,0.00033094,6]
[327661389,1716289847406,-500.0,0.00033094,6]
[327661390,1716289847415,-500.0,0.00033094,6]
[327661391,1716289847424,-246.33,0.00033094,6]
[327661392,1716289847434,-500.0,0.00033094,6]
[327661393,1716289847443,-500.0,0.00033094,6]
[327661394,1716289847451,-705.79,0.00033094,6]
[327661395,1716289847461,-500.0,0.00033094,6]
[327661396,1716289847470,-338.26,0.00033094,6]
[327661397,1716289847480,-702.31,0.00033094,6]
[327661398,1716289847489,-500.0,0.00033094,6]
[327661399,1716289847498,-500.0,0.00033094,6]
[327661400,1716289847507,-500.0,0.00033094,6]
[327661401,1716289847516,-500.0,0.00033094,6]
[327661402,1716289847526,-500.0,0.00033094,6]
[327661403,1716289847535,-541.85,0.00033094,6]
[327661404,1716289847545,-500.0,0.00033094,6]
[327661405,1716289847555,-500.0,0.00033094,6]
[327661406,1716289847564,-500.0,0.00033094,6]
[327661407,1716289847573,-500.0,0.00033094,6]
[327661408,1716289847583,-834.3,0.00033094,6]
[327661409,1716289847592,-500.0,0.00033094,6]
[327661410,1716289847601,-756.94,0.00033094,6]
[327661411,1716289847611,-552.05,0.00033094,6]
[327661412,1716289847621,-366.54,0.00033094,6]
[327661413,1716289847630,-500.0,0.00033094,6]
[327661414,1716289847639,-967.49,0.00033094,6]
[327661415,1716289847649,-500.0,0.00033094,6]
[327661416,1716289847658,-945.95,0.00033094,6]
[327661417,1716289847668,-919.43,0.00033094,6]
[327661418,1716289847677,-500.0,0.00033094,6]
[327661419,1716289847687,-500.0,0.00033094,6]
[327661420,1716289847696,-500.0,0.00033094,6]
[327661421,1716289847705,-2149.82,0.00033094,6]
[327661422,1716289847714,-814.93,0.00033094,6]
[327661423,1716289847723,-1100.82,0.00033094,6]
[327661424,1716289847733,-500.0,0.00033094,6]
[327661425,1716289847742,-500.0,0.00033094,6]
[327661426,1716289847751,-500.0,0.00033094,6]
[327661427,1716289847760,-500.0,0.00033094,6]
[327661428,1716289847769,-662.16,0.00033094,6]
[327661429,1716289847779,-1799.93,0.00033094,6]
[327661430,1716289847788,-500.0,0.00033094,6]
[327661431,1716289847797,-500.0,0.00033094,6]
[327661432,1716289847806,-500.0,0.00033094,6]
[327661433,1716289847816,-500.0,0.00033094,6]
[327661434,1716289847825,-1405.06,0.00033094,6]
[327661435,1716289847835,-799.85,0.00033094,6]
[327661436,1716289847844,-500.0,0.00033094,6]
[327661437,1716289847854,-500.0,0.00033094,6]
[327661438,1716289847871,-500.0,0.00033094,6]
[327661439,1716289847883,-745.28,0.00033094,6]
[327661440,1716289847894,-841.83,0.00033094,6]
[327661441,1716289847904,-232.56,0.00033094,6]
[327661442,1716289847914,-1171.85,0.00033094,6]
[327661443,1716289847924,-344.17,0.00033094,6]
[327661444,1716289847933,-1300.36,0.00033094,6]
[327661445,1716289847944,-749.7,0.00033094,6]
[327661446,1716289847955,-524.09,0.00033094,6]
[327661447,1716289847965,-156.7,0.00033094,6]
[327661448,1716289847975,-161.82992465,0.00033094,6]
[327661449,1716289847985,-868.84,0.00033094,6]
[327661450,1716289847996,-950.55,0.00033094,6]
[327661451,1716289848006,-1154.49,0.00033094,6]
[327661452,1716289848016,-608.39,0.00033094,6]
[327661453,1716289848026,-500.0,0.00033094,6]
[327661454,1716289848036,-551.53,0.00033094,6]
[327661455,1716289848046,-560.82,0.00033094,6]
[327661456,1716289848055,-509.13952475,0.00033094,6]
[327661457,1716289848066,-1111.14,0.00033094,6]
[327661458,1716289848076,-717.37,0.00033094,6]
[327661459,1716289848087,-500.0,0.00033094,6]
[327661460,1716289848097,-500.0,0.00033094,6]
[327661461,1716289848107,-549.44,0.00033094,6]
[327661462,1716289848118,-1884.54,0.00033094,6]
[327661463,1716289848128,-500.0,0.00033094,6]
[327661464,1716289848139,-767.4,0.00033094,6]
[327661465,1716289848149,-500.0,0.00033094,6]
[327661466,1716289848160,-500.0,0.00033094,6]
[327661467,1716289848171,-500.0,0.00033094,6]
[327661468,1716289848182,-705.12,0.00033094,6]
[327661469,1716289848192,-500.0,0.00033094,6]
[327661470,1716289848204,-500.0,0.00033094,7]
[327661471,1716289848216,-500.0,0.00033094,7]
[327661472,1716289848229,-500.0,0.00033094,7]
[327661473,1716289848240,-500.0,0.00033094,7]
[327661474,1716289848249,-500.0,0.00033094,7]
[327661475,1716289848259,-503.89069623,0.00033094,7]